bitfinex/quotes_BTCUSD_20240811
["timestamp","ask_amount","ask_price","bid_price","bid_amount"]
[1723405368538,0.00829,59819.0,59812.0,1.88470449]
[1723405368732,0.00829,59819.0,59818.0,1.686193]
[1723405369006,0.0118422,59825.0,59824.0,0.585047]
[1723405369157,0.0118422,59825.0,59824.0,1.52019992]
[1723405369381,0.11581,59839.0,59838.0,0.584912]
[1723405369928,0.12016189,59839.0,59838.0,0.584912]
[1723405370104,0.12016189,59839.0,59838.0,0.65709528]
[1723405370282,0.00435189,59839.0,59838.0,1.0548752]
[1723405370483,0.0996,59849.0,59840.0,0.584892]
[1723405370685,0.0996,59849.0,59840.0,0.98266392]
[1723405370891,0.0001,59849.0,59840.0,0.98266392]
[1723405371111,0.0001,59849.0,59840.0,1.33582092]
[1723405371282,0.0001,59849.0,59840.0,1.45795261]
[1723405371452,0.0001,59849.0,59840.0,1.22399561]
[1723405371661,0.0001,59849.0,59840.0,0.12213169]
[1723405371662,0.116964,59848.0,59840.0,0.12213169]
[1723405371859,0.0001,59849.0,59840.0,0.12213169]
[1723405371860,0.0995,59843.0,59840.0,0.12213169]
[1723405372058,0.0995,59843.0,59840.0,0.116978]
[1723405372343,0.01264189,59841.0,59837.0,0.233967]
[1723405372539,0.1157,59840.0,59838.0,0.001]
[1723405372736,0.1157,59840.0,59839.0,0.11698]
[1723405373153,0.1,59840.0,59823.0,0.2536]
[1723405373349,0.116985,59837.0,59828.0,0.117001]
[1723405373770,0.1157,59838.0,59831.0,0.2536]
[1723405374010,0.00829,59841.0,59840.0,0.350935]
[1723405374856,0.00829,59841.0,59834.0,0.233977]
[1723405375188,0.00829,59841.0,59837.0,0.116984]
[1723405375391,0.00829,59841.0,59838.0,0.05147739]
[1723405375582,0.00829,59841.0,59838.0,0.16845939]
[1723405375719,0.00829,59841.0,59838.0,0.05147739]
[1723405376141,0.00829,59841.0,59838.0,0.16845939]
[1723405376372,0.00829,59841.0,59838.0,0.05147739]
[1723405376586,0.00829,59841.0,59840.0,0.116978]
[1723405376729,0.00829,59841.0,59840.0,0.75204867]
[1723405376932,0.00829,59841.0,59840.0,0.98600567]
[1723405377459,0.00829,59841.0,59840.0,1.01523218]
[1723405377700,0.00829,59841.0,59840.0,0.98266392]
[1723405377877,0.00829,59841.0,59840.0,1.12248494]
[1723405378083,0.00829,59841.0,59840.0,1.12048494]
[1723405378487,0.00829,59841.0,59840.0,1.36244194]
[1723405378693,0.00829,59841.0,59840.0,1.15628342]
[1723405378872,0.00829,59841.0,59840.0,1.14828342]
[1723405379476,0.00829,59841.0,59840.0,1.16128342]
[1723405380429,0.00829,59841.0,59840.0,1.16828342]
[1723405380687,0.00829,59841.0,59840.0,1.16128342]
[1723405380929,0.00329,59841.0,59840.0,1.16128342]
[1723405381213,0.00329,59841.0,59840.0,1.14748494]
[1723405381913,0.00329,59841.0,59840.0,0.16482102]
[1723405382124,0.00329,59841.0,59840.0,0.027]
[1723405382324,0.00772208,59841.0,59840.0,0.027]
[1723405382551,0.00329,59841.0,59840.0,0.027]
[1723405382778,0.12342178,59841.0,59840.0,0.014]
[1723405382974,0.11899,59841.0,59840.0,0.014]
[1723405383151,0.12341105,59841.0,59840.0,0.004]
[1723405383496,0.12341105,59841.0,59840.0,0.007]
[1723405383727,0.12341105,59841.0,59840.0,0.63172892]
[1723405383917,0.12341105,59841.0,59840.0,0.34496581]
[1723405384115,0.12341105,59841.0,59840.0,0.002]
[1723405384116,0.12199,59841.0,59840.0,0.002]
[1723405384312,0.12641105,59841.0,59840.0,0.001]
[1723405384535,0.12641105,59841.0,59840.0,0.002]
[1723405384771,0.12941105,59841.0,59840.0,0.0029119]
[1723405384936,0.12641105,59841.0,59840.0,0.1188899]
[1723405385142,0.12641105,59841.0,59840.0,0.01280089]
[1723405385366,0.12641105,59841.0,59840.0,0.0009119]
[1723405385519,0.12641105,59841.0,59840.0,0.0019119]
[1723405385723,0.12641105,59841.0,59840.0,0.1188899]
[1723405385724,0.12599,59841.0,59840.0,0.1188899]
[1723405385925,0.12599,59841.0,59840.0,0.0009119]
[1723405386121,0.1303981,59841.0,59840.0,0.1178899]
[1723405386330,0.1303981,59841.0,59840.0,0.38803229]
[1723405386592,0.1303981,59841.0,59840.0,0.15407529]
[1723405386778,0.1303981,59841.0,59840.0,0.15307529]
[1723405386953,0.1233981,59841.0,59840.0,0.03609729]
[1723405387155,0.1233981,59841.0,59840.0,0.15407529]
[1723405387395,0.1263981,59841.0,59840.0,0.15407529]
[1723405387623,0.1233981,59841.0,59840.0,0.15407529]
[1723405387826,0.1233981,59841.0,59840.0,0.38803229]
[1723405388040,0.1263981,59841.0,59840.0,0.38803229]
[1723405388237,0.1263981,59841.0,59840.0,0.62198929]
[1723405388440,0.1263981,59841.0,59840.0,0.38803229]
[1723405388612,0.1233981,59841.0,59840.0,0.15307529]
[1723405388849,0.1233981,59841.0,59840.0,0.03709729]
[1723405389197,0.1233981,59841.0,59840.0,0.03609729]
[1723405389396,0.1233981,59841.0,59840.0,0.0009119]
[1723405389596,0.1263981,59841.0,59840.0,0.0009119]
[1723405389802,0.0106981,59841.0,59840.0,0.5858039]
[1723405389981,0.00629,59841.0,59840.0,0.74961882]
[1723405390781,0.00329,59841.0,59840.0,0.74961882]
[1723405390984,0.00329,59841.0,59840.0,0.8245807]
[1723405391187,0.00329,59841.0,59840.0,0.8255807]
[1723405391427,0.00329,59841.0,59840.0,0.8245807]
[1723405391642,0.00329,59841.0,59840.0,0.8275807]
[1723405391962,0.00329,59841.0,59840.0,0.8285807]
[1723405392369,0.00329,59841.0,59840.0,0.8275807]
[1723405392688,0.00329,59841.0,59840.0,0.8285807]
[1723405394235,0.00329,59841.0,59840.0,1.0625377]
[1723405395057,0.00329,59841.0,59840.0,1.0615377]
[1723405395253,0.00329,59841.0,59840.0,1.0685377]
[1723405395464,0.00329,59841.0,59840.0,1.2994947]
[1723405395670,0.00329,59841.0,59840.0,1.4235947]
[1723405395871,0.00329,59841.0,59840.0,1.5373947]
[1723405396031,0.00329,59841.0,59840.0,1.5603947]
[1723405396829,0.00329,59841.0,59840.0,1.5703947]
[1723405397012,0.00329,59841.0,59840.0,1.6469001]
[1723405397209,0.00329,59841.0,59840.0,1.6589001]
[1723405397773,0.00329,59841.0,59840.0,1.7589001]
[1723405397947,0.00329,59841.0,59840.0,1.81532687]
[1723405398149,0.00329,59841.0,59840.0,1.79335611]
[1723405398357,0.00329,59841.0,59840.0,1.81535611]
[1723405398717,0.00329,59841.0,59840.0,1.7369001]
[1723405399123,0.00329,59841.0,59840.0,1.1793377]
[1723405402188,0.00329,59841.0,59840.0,1.0815377]
[1723405402616,0.00329,59841.0,59840.0,0.44980878]
[1723405402829,0.00329,59841.0,59840.0,0.09887378]
[1723405402830,0.12719,59841.0,59840.0,0.09887378]
[1723405403057,0.1316158,59841.0,59840.0,0.0239119]
[1723405403303,0.30512135,59841.0,59840.0,0.0239119]
[1723405403503,0.30512186,59841.0,59840.0,0.0239119]
[1723405403633,0.30512186,59841.0,59840.0,0.0139119]
[1723405403634,0.1316158,59841.0,59840.0,0.0139119]
[1723405403855,0.2237158,59841.0,59840.0,0.0009119]
[1723405404055,0.39722212,59841.0,59840.0,0.0049119]
[1723405404406,0.39722212,59841.0,59840.0,0.0009119]
[1723405404614,0.51419812,59841.0,59840.0,0.0009119]
[1723405404814,0.56123805,59841.0,59840.0,0.0009119]
[1723405405215,1.20295897,59841.0,59840.0,0.0009119]
[1723405405376,1.4230369,59841.0,59840.0,0.0009119]
[1723405405779,1.4240369,59841.0,59840.0,0.0009119]
[1723405406370,1.4340369,59841.0,59840.0,0.0009119]
[1723405406567,1.6679899,59841.0,59840.0,0.0009119]
[1723405406997,1.6669899,59841.0,59840.0,0.0009119]
[1723405407225,1.6679899,59841.0,59840.0,0.0019119]
[1723405407416,1.6779899,59841.0,59840.0,0.0019119]
[1723405407593,1.54701984,59841.0,59840.0,0.0009119]
[1723405407813,1.67849475,59841.0,59840.0,0.0029119]
[1723405408013,1.67849475,59841.0,59840.0,0.0019119]
[1723405408014,1.43454175,59841.0,59840.0,0.0019119]
[1723405408244,1.20058875,59841.0,59840.0,0.0019119]
[1723405408446,0.67684483,59841.0,59840.0,0.0019119]
[1723405408594,0.54536992,59841.0,59840.0,0.0019119]
[1723405409034,0.54636992,59841.0,59840.0,0.0029119]
[1723405409540,0.66334592,59841.0,59840.0,0.0029119]
[1723405409770,0.89729892,59841.0,59840.0,0.0029119]
[1723405409888,0.66334592,59841.0,59840.0,0.0029119]
[1723405410091,0.66134592,59841.0,59840.0,0.0009119]
[1723405410393,0.22836992,59841.0,59840.0,0.1188899]
[1723405410507,0.0077158,59841.0,59840.0,0.01380089]
[1723405410717,0.0087158,59841.0,59840.0,0.01480089]
[1723405410962,0.0087158,59841.0,59840.0,0.13177889]
[1723405411171,0.00429,59841.0,59840.0,0.13177889]
[1723405411381,0.00429,59841.0,59840.0,0.36473589]
[1723405411597,0.00329,59841.0,59840.0,0.76150781]
[1723405411962,0.00429,59841.0,59840.0,0.76150781]
[1723405412184,0.00429,59841.0,59840.0,0.01280089]
[1723405412390,0.00429,59841.0,59840.0,0.0009119]
[1723405412754,0.00866303,59841.0,59840.0,0.0009119]
[1723405412947,0.00429,59841.0,59840.0,0.0009119]
[1723405413181,0.00866303,59841.0,59840.0,0.0009119]
[1723405413388,0.00529,59841.0,59840.0,0.0009119]
[1723405413592,0.00966303,59841.0,59840.0,0.01270099]
[1723405413917,0.00766303,59841.0,59840.0,0.01270099]
[1723405414065,0.00866303,59841.0,59840.0,0.36363599]
[1723405414270,0.00429,59841.0,59840.0,0.36363599]
[1723405414674,0.00529,59841.0,59840.0,0.36363599]
[1723405414880,0.00329,59841.0,59840.0,0.83154999]
[1723405415279,0.00329,59841.0,59840.0,0.83254999]
[1723405415536,0.00329,59841.0,59840.0,0.59859299]
[1723405416653,0.00329,59841.0,59840.0,0.69479299]
[1723405417107,0.00329,59841.0,59840.0,1.09256491]
[1723405419095,0.00329,59841.0,59840.0,1.44592191]
[1723405419655,0.0001,59849.0,59841.0,0.01]
[1723405419859,0.0001,59849.0,59848.0,1.63497692]
[1723405420060,0.0001,59849.0,59848.0,1.75797692]
[1723405421100,0.0001,59849.0,59848.0,1.76197692]
[1723405421302,0.0001,59849.0,59848.0,1.99290192]
[1723405421520,0.0001,59849.0,59848.0,1.75797692]
[1723405421723,0.0001,59849.0,59848.0,1.92212662]
[1723405422275,0.0001,59849.0,59848.0,1.89912662]
[1723405422392,0.0001,59849.0,59848.0,1.90912662]
[1723405422593,0.0001,59849.0,59848.0,1.92212662]
[1723405422930,0.0001,59849.0,59848.0,1.95712662]
[1723405423138,0.0001,59849.0,59848.0,1.96712662]
[1723405423392,0.0001,59849.0,59848.0,1.95412662]
[1723405423592,0.0001,59849.0,59848.0,1.94412662]
[1723405423731,0.0001,59849.0,59848.0,1.95812662]
[1723405423930,0.0001,59849.0,59848.0,1.96912662]
[1723405424218,0.0001,59849.0,59848.0,1.94712662]
[1723405424329,0.0001,59849.0,59848.0,1.96712662]
[1723405424536,0.0001,59849.0,59848.0,1.95612662]
[1723405424871,0.0001,59849.0,59848.0,1.94812662]
[1723405425205,0.00829,59865.0,59864.0,0.584657]
[1723405425335,0.00829,59865.0,59864.0,1.45930062]
[1723405425536,0.00829,59865.0,59864.0,2.05002662]
[1723405425872,0.00829,59865.0,59864.0,2.14402509]
[1723405426071,0.00829,59865.0,59864.0,1.84088173]
[1723405426272,0.00829,59865.0,59864.0,1.81788173]
[1723405426483,0.00829,59865.0,59864.0,1.79316362]
[1723405427450,0.00829,59865.0,59864.0,1.80416362]
[1723405427655,0.00829,59865.0,59864.0,1.79316362]
[1723405427849,0.00829,59865.0,59864.0,1.0938857]
[1723405428095,0.00829,59865.0,59864.0,0.8600227]
[1723405428628,0.00829,59865.0,59864.0,1.26870062]
[1723405429357,0.00829,59865.0,59864.0,1.25470062]
[1723405429777,0.00829,59865.0,59864.0,1.24370062]
[1723405429997,0.00829,59865.0,59864.0,1.25470062]
[1723405430198,0.00829,59865.0,59864.0,1.71166362]
[1723405430396,0.00829,59865.0,59864.0,1.73466362]
[1723405431239,0.00812294,59865.0,59864.0,1.71466362]
[1723405431413,0.00812294,59865.0,59864.0,1.73766362]
[1723405431594,0.00812294,59865.0,59864.0,1.76241006]
[1723405431795,0.00812294,59865.0,59864.0,1.75241006]
[1723405432631,0.00812294,59865.0,59864.0,1.76641006]
[1723405432828,0.00812294,59865.0,59864.0,1.75341006]
[1723405433456,0.0001,59869.0,59868.0,0.818464]
[1723405433661,0.0191322,59885.0,59884.0,0.451477]
[1723405433874,0.00829,59900.0,59899.0,0.233726]
[1723405434068,0.00829,59900.0,59899.0,0.74812992]
[1723405434510,0.00829,59900.0,59899.0,0.51440392]
[1723405435314,0.00829,59900.0,59899.0,0.73900392]
[1723405435525,0.00849,59909.0,59908.0,0.584227]
[1723405435699,0.00849,59909.0,59908.0,0.6118587]
[1723405435898,0.13039,59909.0,59908.0,0.0584227]
[1723405436126,0.13039,59909.0,59901.0,0.2029]
[1723405436127,0.247234,59909.0,59901.0,0.2029]
[1723405436323,0.247234,59909.0,59908.0,0.116845]
[1723405436324,0.13486715,59909.0,59908.0,0.116845]
[1723405436529,0.13486715,59909.0,59907.0,0.2029]
[1723405436728,0.13486715,59909.0,59896.0,0.233737]
[1723405436729,0.13486715,59909.0,59908.0,0.014]
[1723405436881,0.13486715,59909.0,59902.0,0.116856]
[1723405437082,0.13486715,59909.0,59903.0,0.1722031]
[1723405437292,0.13486715,59909.0,59903.0,0.0553481]
[1723405437726,0.13486715,59909.0,59903.0,0.1722031]
[1723405437924,0.13486715,59909.0,59903.0,0.0553481]
[1723405438539,0.13486715,59909.0,59881.0,0.002]
[1723405438540,0.2142,59907.0,59891.0,0.233757]
[1723405438745,0.233704,59905.0,59894.0,0.116872]
[1723405438911,0.116859,59901.0,59891.0,0.16381492]
[1723405439120,0.116861,59900.0,59891.0,0.16381492]
[1723405439297,0.12138692,59900.0,59892.0,0.06313459]
[1723405439656,0.1219,59899.0,59892.0,0.06313459]
[1723405439799,0.1219,59899.0,59891.0,0.001]
[1723405439800,0.116869,59896.0,59891.0,0.001]
[1723405440001,0.233736,59897.0,59891.0,0.001]
[1723405440204,0.00452592,59900.0,59891.0,0.001]
[1723405440205,0.350631,59892.0,59891.0,0.001]
[1723405440385,0.798585,59892.0,59891.0,0.001]
[1723405440583,0.798585,59892.0,59882.0,0.004]
[1723405440584,0.116887,59887.0,59882.0,0.004]
[1723405440844,0.447954,59892.0,59882.0,0.0160903]
[1723405440845,0.116885,59888.0,59882.0,0.0160903]
[1723405441020,0.233758,59891.0,59882.0,0.0160903]
[1723405441220,0.00457816,59887.0,59882.0,0.0160903]
[1723405441421,0.116894,59883.0,59882.0,0.0160903]
[1723405441643,0.116891,59885.0,59882.0,0.004]
[1723405441802,0.00457816,59883.0,59882.0,0.004]
[1723405442003,0.1219,59886.0,59882.0,0.004]
[1723405442203,0.00456954,59883.0,59882.0,0.004]
[1723405442402,0.1219,59886.0,59882.0,0.004]
[1723405442627,0.00456954,59883.0,59882.0,0.004]
[1723405442828,0.1219,59886.0,59882.0,0.004]
[1723405442829,0.238789,59886.0,59882.0,0.004]
[1723405443033,0.00456954,59883.0,59882.0,0.004]
[1723405443231,0.1219,59886.0,59882.0,0.004]
[1723405443781,0.0045608,59885.0,59882.0,0.005]
[1723405444097,0.1219,59886.0,59883.0,0.0121899]
[1723405444302,0.1219,59886.0,59882.0,0.005]
[1723405444303,0.116894,59883.0,59882.0,0.005]
[1723405444614,0.12145601,59883.0,59882.0,0.004]
[1723405445053,0.00456201,59883.0,59882.0,0.004]
[1723405445256,0.1219,59886.0,59882.0,0.0049108]
[1723405445436,0.2142,59892.0,59886.0,0.116888]
[1723405445641,0.1219,59892.0,59887.0,0.01987345]
[1723405445911,0.1219,59892.0,59889.0,0.116882]
[1723405446140,0.1219,59892.0,59887.0,0.13675845]
[1723405446260,0.1219,59892.0,59888.0,0.116884]
[1723405446457,0.1219,59892.0,59889.0,0.116882]
[1723405446712,0.1219,59892.0,59890.0,0.05343424]
[1723405447113,0.1249,59892.0,59890.0,0.05343424]
[1723405447315,0.003,59892.0,59891.0,0.116878]
[1723405447656,0.003,59892.0,59891.0,0.350635]
[1723405447803,0.1219,59897.0,59892.0,0.116876]
[1723405448005,0.1219,59897.0,59893.0,0.04040682]
[1723405448210,0.11687,59896.0,59893.0,0.04040682]
[1723405448414,0.11687,59896.0,59887.0,0.13675845]
[1723405448622,0.1219,59897.0,59891.0,0.116878]
[1723405448826,0.1219,59897.0,59889.0,0.116882]
[1723405449150,0.238767,59897.0,59889.0,0.116882]
[1723405449301,0.11687,59896.0,59887.0,0.01987345]
[1723405449498,0.11687,59896.0,59888.0,0.14224984]
[1723405449704,0.001,59892.0,59888.0,0.14224984]
[1723405449883,0.11687,59896.0,59888.0,0.14224984]
[1723405450286,0.11687,59896.0,59889.0,0.001]
[1723405450573,0.1229,59897.0,59888.0,0.02536584]
[1723405450687,0.1229,59897.0,59889.0,0.02790123]
[1723405450891,0.001,59892.0,59889.0,0.02790123]
[1723405451112,0.001,59892.0,59891.0,0.116878]
[1723405451515,0.00554008,59892.0,59891.0,0.116878]
[1723405451711,0.001,59892.0,59891.0,0.116878]
[1723405451924,0.00554008,59892.0,59891.0,0.41395357]
[1723405452119,0.001,59892.0,59891.0,0.18019657]
[1723405453225,0.000828,59900.0,59891.0,0.23047277]
[1723405453445,0.00454008,59899.0,59895.0,0.233742]
[1723405453677,0.000828,59900.0,59899.0,0.116863]
[1723405454122,0.000828,59900.0,59899.0,0.350589]
[1723405454836,0.002828,59900.0,59899.0,0.350589]
[1723405455040,0.000828,59900.0,59899.0,0.82205038]
[1723405455191,0.000828,59900.0,59899.0,1.73240899]
[1723405455396,0.000828,59900.0,59899.0,1.49868299]
[1723405456427,0.000828,59900.0,59899.0,1.50068299]
[1723405456798,0.000828,59900.0,59899.0,1.49868299]
[1723405457160,0.000828,59900.0,59899.0,1.75040899]
[1723405457570,0.000828,59900.0,59899.0,1.51668299]
[1723405457878,0.000828,59900.0,59899.0,1.75040899]
[1723405458411,0.000828,59900.0,59899.0,1.74240899]
[1723405458617,0.000828,59900.0,59899.0,1.76440899]
[1723405459234,0.00849,59909.0,59908.0,1.277409]
[1723405459415,0.00849,59909.0,59908.0,1.95596482]
[1723405460061,0.00849,59909.0,59908.0,1.95796482]
[1723405460404,0.00849,59909.0,59908.0,1.74764844]
[1723405460514,0.00849,59909.0,59908.0,1.71227382]
[1723405461568,0.00849,59909.0,59908.0,1.72627382]
[1723405461945,0.00849,59909.0,59908.0,1.95996482]
[1723405462227,0.00849,59909.0,59908.0,1.96996482]
[1723405462447,0.00849,59909.0,59908.0,1.72627382]
[1723405462885,0.00849,59909.0,59908.0,1.71227382]
[1723405463099,0.00849,59909.0,59908.0,1.70027382]
[1723405463302,0.00849,59909.0,59908.0,1.68927382]
[1723405463724,0.00849,59909.0,59908.0,1.70327382]
[1723405464133,0.00849,59909.0,59908.0,1.92296482]
[1723405464336,0.00849,59909.0,59908.0,1.93696482]
[1723405464511,0.00849,59909.0,59908.0,1.72627382]
[1723405465914,0.00849,59909.0,59908.0,1.58797382]
[1723405466096,0.00849,59909.0,59908.0,1.47747382]
[1723405466294,0.00849,59909.0,59908.0,1.50047382]
[1723405466905,0.00849,59909.0,59908.0,1.48647382]
[1723405467329,0.00849,59909.0,59908.0,1.50047382]
[1723405467529,0.00849,59909.0,59908.0,1.48647382]
[1723405467906,0.00849,59909.0,59908.0,1.50047382]
[1723405468890,0.00849,59909.0,59908.0,1.47747382]
[1723405469091,0.00849,59909.0,59908.0,1.46347382]
[1723405469293,0.00849,59909.0,59908.0,1.47066567]
[1723405469499,0.00849,59909.0,59908.0,1.48466567]
[1723405469729,0.00849,59909.0,59908.0,1.46347382]
[1723405470138,0.00849,59909.0,59908.0,1.47747382]
[1723405470360,0.00849,59909.0,59908.0,1.50047382]
[1723405470595,0.00849,59909.0,59908.0,1.48647382]
[1723405470746,0.00849,59909.0,59908.0,1.50047382]
[1723405471189,0.00849,59909.0,59908.0,1.85936482]
[1723405471753,0.00849,59909.0,59908.0,1.86136482]
[1723405471950,0.00849,59909.0,59908.0,1.79866482]
[1723405472530,0.00849,59909.0,59908.0,1.78466482]
[1723405472675,0.00849,59909.0,59908.0,1.55097382]
[1723405472875,0.00849,59909.0,59908.0,1.56497382]
[1723405473079,0.00849,59909.0,59908.0,1.55097382]
[1723405473289,0.00849,59909.0,59908.0,1.78466482]
[1723405473486,0.00849,59909.0,59908.0,1.79866482]
[1723405473648,0.00849,59909.0,59908.0,1.78466482]
[1723405474024,0.00849,59909.0,59908.0,1.44977382]
[1723405474227,0.00849,59909.0,59908.0,1.43577382]
[1723405474542,0.00849,59909.0,59908.0,1.44977382]
[1723405475716,0.00849,59909.0,59908.0,1.43577382]
[1723405476116,0.00849,59909.0,59908.0,1.44977382]
[1723405476334,0.00849,59909.0,59908.0,1.09308282]
[1723405480864,0.00849,59909.0,59908.0,0.4932769]
[1723405481066,0.12669,59909.0,59908.0,0.014]
[1723405481442,0.13133306,59909.0,59908.0,0.130845]
[1723405482008,0.13133306,59909.0,59908.0,0.116845]
[1723405482280,0.13133306,59909.0,59908.0,0.128845]
[1723405482855,0.13133306,59909.0,59908.0,0.116845]
[1723405483053,0.13133306,59909.0,59908.0,0.1752695]
[1723405483300,0.13133306,59909.0,59908.0,0.1812695]
[1723405485107,0.13133306,59909.0,59908.0,0.6486515]
[1723405485311,0.00849,59909.0,59908.0,1.24845742]
[1723405486428,0.00849,59909.0,59908.0,1.24245742]
[1723405487404,0.00849,59909.0,59908.0,1.66443929]
[1723405487679,0.00849,59909.0,59908.0,1.74325721]
[1723405487914,0.00849,59909.0,59908.0,1.68743929]
[1723405488028,0.00849,59909.0,59908.0,1.86895972]
[1723405488510,0.00849,59909.0,59908.0,1.81313929]
[1723405488657,0.00849,59909.0,59908.0,1.85494182]
[1723405488897,0.00849,59909.0,59908.0,1.79913929]
[1723405489061,0.00849,59909.0,59908.0,1.81313929]
[1723405489266,0.00849,59909.0,59908.0,1.86898416]
[1723405489675,0.00849,59909.0,59908.0,1.82713929]
[1723405489880,0.00849,59909.0,59908.0,1.88298374]
[1723405490275,0.00849,59909.0,59908.0,1.75294842]
[1723405490520,0.00849,59909.0,59908.0,1.82741022]
[1723405490721,0.00849,59909.0,59908.0,1.98334005]
[1723405491334,0.00849,59909.0,59908.0,1.85294842]
[1723405491504,0.00849,59909.0,59908.0,1.98346089]
[1723405493004,0.00849,59909.0,59908.0,1.98546089]
[1723405493205,0.00849,59909.0,59908.0,1.98346089]
[1723405494024,0.00849,59909.0,59908.0,1.9834128]
[1723405494765,0.00849,59909.0,59908.0,1.9854128]
[1723405494916,0.00849,59909.0,59908.0,1.9574128]
[1723405495097,0.00849,59909.0,59908.0,1.9554128]
[1723405495514,0.00849,59909.0,59908.0,1.9574128]
[1723405495714,0.00849,59909.0,59908.0,1.9714128]
[1723405495940,0.00849,59909.0,59908.0,1.9574128]
[1723405496259,0.00849,59909.0,59908.0,1.9714128]
[1723405496863,0.00849,59909.0,59908.0,1.9694128]
[1723405497661,0.00849,59909.0,59908.0,1.96943753]
[1723405497874,0.00849,59909.0,59908.0,1.50994653]
[1723405498077,0.00849,59909.0,59908.0,1.33110739]
[1723405498226,0.13419,59909.0,59908.0,1.33076112]
[1723405498433,0.13419,59909.0,59908.0,1.25645742]
[1723405499052,0.13419,59909.0,59908.0,1.24245742]
[1723405499258,0.13419,59909.0,59908.0,0.4089605]
[1723405499474,0.13419,59909.0,59908.0,0.4159605]
[1723405499710,0.13419,59909.0,59908.0,0.4089605]
[1723405499931,0.13419,59909.0,59908.0,1.01576642]
[1723405500334,0.00849,59909.0,59908.0,1.24945742]
[1723405501192,0.00849,59909.0,59908.0,1.24245742]
[1723405501641,0.00849,59909.0,59908.0,1.01576642]
[1723405501838,0.00849,59909.0,59908.0,1.00876642]
[1723405502031,0.13419,59909.0,59908.0,0.81546642]
[1723405502390,0.13419,59909.0,59908.0,0.80646642]
[1723405502800,0.13419,59909.0,59908.0,0.81646642]
[1723405503079,0.13419,59909.0,59908.0,0.80646642]
[1723405503313,0.00849,59909.0,59908.0,1.04015742]
[1723405503503,0.00849,59909.0,59908.0,1.23211626]
[1723405504243,0.00849,59909.0,59908.0,1.31383977]
[1723405504447,0.00849,59909.0,59908.0,1.23218093]
[1723405504917,0.00849,59909.0,59908.0,1.24418093]
[1723405505124,0.00849,59909.0,59908.0,1.23218093]
[1723405505533,0.00849,59909.0,59908.0,1.47887193]
[1723405506093,0.00744046,59909.0,59908.0,1.47887193]
[1723405506381,0.00744046,59909.0,59908.0,1.47328983]
[1723405506816,0.00744046,59909.0,59908.0,1.23959883]
[1723405507594,0.00744046,59909.0,59908.0,1.15929883]
[1723405508043,0.00739046,59909.0,59908.0,1.15909102]
[1723405508458,0.00739046,59909.0,59908.0,1.08455517]
[1723405508660,0.00739046,59909.0,59908.0,1.15909068]
[1723405510661,0.00739046,59909.0,59908.0,1.24093714]
[1723405511244,0.00739046,59909.0,59908.0,1.59253489]
[1723405511446,0.00739046,59909.0,59908.0,1.88932734]
[1723405511775,0.00739046,59909.0,59908.0,1.86732734]
[1723405512120,0.00739046,59909.0,59908.0,1.86932734]
[1723405512357,0.00739046,59909.0,59908.0,1.86732734]
[1723405512714,0.00739046,59909.0,59908.0,1.80027416]
[1723405512916,0.00739046,59909.0,59908.0,1.79827416]
[1723405513503,0.00739046,59909.0,59908.0,1.87325529]
[1723405513682,0.00739046,59909.0,59908.0,1.79827416]
[1723405513820,0.00739046,59909.0,59908.0,1.77427416]
[1723405514283,0.00739046,59909.0,59908.0,1.34199426]
[1723405514487,0.00739046,59909.0,59908.0,1.29200498]
[1723405515074,0.00739046,59909.0,59908.0,1.27806713]
[1723405515279,0.00739046,59909.0,59908.0,1.28466938]
[1723405515472,0.12639046,59909.0,59908.0,0.89506408]
[1723405516596,0.12639046,59909.0,59908.0,0.26386716]
[1723405516815,0.33643346,59909.0,59908.0,0.014]
[1723405517003,0.235848,59907.0,59899.0,0.0009108]
[1723405517207,0.119,59906.0,59899.0,0.0009108]
[1723405517429,0.12364016,59906.0,59899.0,0.0009108]
[1723405517620,0.12364016,59906.0,59901.0,0.02355506]
[1723405518795,0.0932,59904.0,59901.0,0.02355506]
[1723405519001,0.119,59902.0,59901.0,0.350577]
[1723405519422,0.12359692,59902.0,59899.0,0.0009108]
[1723405519778,0.12359692,59902.0,59899.0,0.1177738]
[1723405520787,0.12359692,59902.0,59900.0,0.1177718]
[1723405520996,0.12359692,59902.0,59900.0,0.0009108]
[1723405521212,0.119,59902.0,59900.0,0.0009108]
[1723405521414,0.119,59902.0,59901.0,0.15210076]
[1723405521621,0.119,59902.0,59901.0,0.54963368]
[1723405522045,0.119,59902.0,59901.0,0.78335168]
[1723405522253,0.119,59907.0,59901.0,0.40135668]
[1723405522463,0.119,59907.0,59906.0,0.350548]
[1723405522657,0.119,59907.0,59904.0,0.116852]
[1723405523039,0.119,59907.0,59903.0,0.116854]
[1723405523249,0.119,59907.0,59902.0,0.04031783]
[1723405523443,0.119,59905.0,59900.0,0.0009108]
[1723405523816,0.119,59905.0,59904.0,0.116853]
[1723405524243,0.119,59905.0,59903.0,0.116855]
[1723405524462,0.119,59905.0,59901.0,0.233715]
[1723405524463,0.119,59905.0,59904.0,0.116853]
[1723405524687,0.119,59905.0,59903.0,0.116854]
[1723405524819,0.119,59905.0,59904.0,0.05851938]
[1723405525033,0.119,59905.0,59904.0,0.17537238]
[1723405525291,0.119,59905.0,59904.0,0.05851938]
[1723405525429,0.119,59905.0,59903.0,0.116855]
[1723405525629,0.119,59905.0,59903.0,0.117855]
[1723405525830,0.119,59905.0,59903.0,0.116855]
[1723405526091,0.119,59905.0,59904.0,0.001]
[1723405526654,0.119,59905.0,59904.0,0.117853]
[1723405527179,0.119,59905.0,59904.0,0.03624788]
[1723405527531,0.119,59905.0,59900.0,0.0009108]
[1723405527664,0.119,59905.0,59903.0,0.001]
[1723405527864,0.119,59905.0,59900.0,0.1177718]
[1723405528061,0.119,59905.0,59901.0,0.116859]
[1723405528271,0.119,59905.0,59904.0,0.001]
[1723405528469,0.119,59905.0,59900.0,0.1177718]
[1723405528674,0.119,59905.0,59901.0,0.15210026]
[1723405528857,0.119,59905.0,59904.0,0.35056]
[1723405529053,0.119,59905.0,59904.0,0.584267]
[1723405530631,0.12939046,59909.0,59908.0,0.350536]
[1723405531014,0.13398103,59909.0,59908.0,0.350536]
[1723405531214,0.13398103,59909.0,59908.0,0.4092597]